[Event "Late-Titled-Tuesday-Blitz-March-12-2024"]
[Site "Chess.com"]
[Date "2024.03.12"]
[Round "3"]
[White "Hikaru"]
[Black "ContrVersia"]
[Result "1-0"]
[WhiteElo "3257"]
[BlackElo "2870"]
[TimeControl "180+1"]
[EndTime "14:28:37 PDT"]
[Termination "Hikaru won by resignation"]

1. Nf3 {[%clk 0:03:00.9]} 1... d5 {[%clk 0:02:57.7]} 2. e3 {[%clk 0:02:55.3]}
2... Nf6 {[%clk 0:02:56.7]} 3. c4 {[%clk 0:02:56.2]} 3... c6 {[%clk 0:02:56.2]}
4. Qc2 {[%clk 0:02:55.1]} 4... Bg4 {[%clk 0:02:49.7]} 5. d4 {[%clk 0:02:53.5]}
5... e6 {[%clk 0:02:47]} 6. Nbd2 {[%clk 0:02:53.3]} 6... Nbd7 {[%clk 0:02:43.3]}
7. Bd3 {[%clk 0:02:53.4]} 7... Bd6 {[%clk 0:02:40.7]} 8. h3 {[%clk 0:02:53.8]}
8... Bh5 {[%clk 0:02:40.7]} 9. b3 {[%clk 0:02:53.9]} 9... Bg6 {[%clk 0:02:37.9]}
10. Bxg6 {[%clk 0:02:53.5]} 10... hxg6 {[%clk 0:02:37.8]} 11. Bb2 {[%clk
0:02:54.1]} 11... a5 {[%clk 0:02:35.1]} 12. a3 {[%clk 0:02:53.7]} 12... b5
{[%clk 0:02:31.9]} 13. O-O {[%clk 0:02:52.2]} 13... a4 {[%clk 0:02:25.9]} 14.
cxb5 {[%clk 0:02:28]} 14... cxb5 {[%clk 0:02:25.7]} 15. bxa4 {[%clk 0:02:23.3]}
15... bxa4 {[%clk 0:02:25.1]} 16. Rfb1 {[%clk 0:02:14.1]} 16... O-O {[%clk
0:02:17]} 17. Bc3 {[%clk 0:02:14.2]} 17... Qc7 {[%clk 0:02:14.8]} 18. Qd3 {[%clk
0:02:13.5]} 18... Rfb8 {[%clk 0:02:11.5]} 19. Rc1 {[%clk 0:02:13.7]} 19... Qd8
{[%clk 0:02:07.2]} 20. Ne5 {[%clk 0:02:13.8]} 20... Qf8 {[%clk 0:01:53.8]} 21.
Nc6 {[%clk 0:02:09.6]} 21... Rb6 {[%clk 0:01:49.5]} 22. Bb4 {[%clk 0:02:09.4]}
22... Bxb4 {[%clk 0:01:23]} 23. Nxb4 {[%clk 0:02:10.3]} 23... e5 {[%clk
0:01:23.5]} 24. dxe5 {[%clk 0:02:08.1]} 24... Nxe5 {[%clk 0:01:24.4]} 25. Qd4
{[%clk 0:02:08.5]} 25... Qd6 {[%clk 0:01:02.9]} 26. Rc3 {[%clk 0:02:04.7]} 26...
Rd8 {[%clk 0:00:46.8]} 27. Rac1 {[%clk 0:02:03.9]} 27... Rbb8 {[%clk 0:00:45.5]}
28. f4 {[%clk 0:01:58.5]} 28... Nc4 {[%clk 0:00:34.5]} 29. Nxc4 {[%clk
0:01:57.7]} 29... dxc4 {[%clk 0:00:35]} 30. Qxd6 {[%clk 0:01:54.9]} 30... Rxd6
{[%clk 0:00:35.9]} 31. Rxc4 {[%clk 0:01:55.8]} 31... Kh7 {[%clk 0:00:26]} 32.
Rc7 {[%clk 0:01:53.7]} 32... Re8 {[%clk 0:00:23.1]} 33. Rxf7 {[%clk 0:00:53.1]}
33... Rxe3 {[%clk 0:00:22.4]} 34. Rcc7 {[%clk 0:00:53.8]} 34... Nh5 {[%clk
0:00:22.5]} 35. Rf8 {[%clk 0:00:39.1]} 35... Rd1+ {[%clk 0:00:05]} 36. Kf2
{[%clk 0:00:37.4]} 36... Rde1 {[%clk 0:00:03.5]} 37. Nc2 {[%clk 0:00:25.3]}
37... R3e2+ {[%clk 0:00:02.7]} 38. Kf3 {[%clk 0:00:25.8]} 38... Re8 {[%clk
0:00:02.1]} 39. Rxe8 {[%clk 0:00:22]} 39... Rxe8 {[%clk 0:00:03]} 40. Rc4 {[%clk
0:00:20.3]} 40... Nf6 {[%clk 0:00:01.6]} 41. Rxa4 {[%clk 0:00:19.8]} 41... Rc8
{[%clk 0:00:02.1]} 42. Ne3 {[%clk 0:00:18.6]} 42... Rc3 {[%clk 0:00:02.9]} 43.
Ke2 {[%clk 0:00:18.2]} 43... Nh5 {[%clk 0:00:02.3]} 44. g4 {[%clk 0:00:16.4]}
44... Ng3+ {[%clk 0:00:02.1]} 45. Kf2 {[%clk 0:00:16.9]} 45... Rb3 {[%clk
0:00:02.6]} 46. Kxg3 {[%clk 0:00:11.4]} 46... Rxe3+ {[%clk 0:00:02.7]} 47. Kg2
{[%clk 0:00:12.1]} 47... Rb3 {[%clk 0:00:02.9]} 48. Ra5 {[%clk 0:00:11.4]} 48...
Kg8 {[%clk 0:00:02.2]} 49. Ra8+ {[%clk 0:00:10.8]} 49... Kh7 {[%clk 0:00:02.5]}
50. Ra5 {[%clk 0:00:10.9]} 50... Rc3 {[%clk 0:00:02.6]} 51. h4 {[%clk
0:00:10.4]} 51... Rb3 {[%clk 0:00:02.5]} 52. h5 {[%clk 0:00:09.5]} 52... gxh5
{[%clk 0:00:01.9]} 53. Rxh5+ {[%clk 0:00:10.4]} 53... Kg8 {[%clk 0:00:02.1]} 54.
Ra5 {[%clk 0:00:11.1]} 54... Kf7 {[%clk 0:00:01.7]} 55. Ra6 {[%clk 0:00:11.2]}
55... Rc3 {[%clk 0:00:01.7]} 56. f5 {[%clk 0:00:11.2]} 56... Rb3 {[%clk
0:00:01.6]} 57. a4 {[%clk 0:00:11.7]} 57... Ra3 {[%clk 0:00:01.8]} 58. Kf2
{[%clk 0:00:09.8]} 58... Rb3 {[%clk 0:00:01.9]} 59. a5 {[%clk 0:00:09.7]} 59...
Ra3 {[%clk 0:00:02.1]} 60. g5 {[%clk 0:00:10.4]} 60... Rb3 {[%clk 0:00:01.9]}
61. Ra7+ {[%clk 0:00:10.4]} 61... Kf8 {[%clk 0:00:01.7]} 62. Ra8+ {[%clk
0:00:10.8]} 62... Kf7 {[%clk 0:00:01.7]} 63. g6+ {[%clk 0:00:09.2]} 63... Kf6
{[%clk 0:00:02]} 64. Rf8+ {[%clk 0:00:09.6]} 64... Kg5 {[%clk 0:00:02.4]} 65.
Rf7 {[%clk 0:00:03.8]} 65... Kh6 {[%clk 0:00:01.8]} 66. a6 {[%clk 0:00:04.2]}
66... Ra3 {[%clk 0:00:02.1]} 67. a7 {[%clk 0:00:04.9]} 67... Ra1 {[%clk
0:00:02.2]} 68. Ke3 {[%clk 0:00:05.3]} 68... Ra4 {[%clk 0:00:02.1]} 69. Kd3
{[%clk 0:00:05.7]} 69... Kg5 {[%clk 0:00:02.1]} 70. Kc3 {[%clk 0:00:06.2]} 70...
Ra1 {[%clk 0:00:01.9]} 71. Kb4 {[%clk 0:00:06.6]} 71... Ra2 {[%clk 0:00:01.7]}
72. Kc5 {[%clk 0:00:07.2]} 72... Rb2 {[%clk 0:00:01.8]} 73. a8=Q {[%clk
0:00:06.9]} 1-0

[Event "Late-Titled-Tuesday-Blitz-March-12-2024"]
[Site "Chess.com"]
[Date "2024.03.12"]
[Round "3"]
[White "andrew-blr"]
[Black "sergiochess83"]
[Result "0-1"]
[WhiteElo "2639"]
[BlackElo "2893"]
[TimeControl "180+1"]
[EndTime "14:28:38 PDT"]
[Termination "sergiochess83 won by checkmate"]

1. d4 {[%clk 0:03:00.9]} 1... d5 {[%clk 0:02:56.5]} 2. c4 {[%clk 0:03:00.5]}
2... c6 {[%clk 0:02:56.4]} 3. Nf3 {[%clk 0:03:00.2]} 3... Nf6 {[%clk 0:02:56.6]}
4. e3 {[%clk 0:03:00.3]} 4... Bg4 {[%clk 0:02:54.8]} 5. h3 {[%clk 0:02:58.9]}
5... Bh5 {[%clk 0:02:54]} 6. Nc3 {[%clk 0:02:58.8]} 6... e6 {[%clk 0:02:54.3]}
7. g4 {[%clk 0:02:58.1]} 7... Bg6 {[%clk 0:02:53.9]} 8. Ne5 {[%clk 0:02:58.7]}
8... Nbd7 {[%clk 0:02:53.9]} 9. Nxg6 {[%clk 0:02:57.6]} 9... hxg6 {[%clk
0:02:53.8]} 10. Qb3 {[%clk 0:02:56.9]} 10... Qb6 {[%clk 0:02:50.1]} 11. g5
{[%clk 0:02:55.7]} 11... Ng8 {[%clk 0:02:34.8]} 12. Bd2 {[%clk 0:02:38.3]} 12...
Ne7 {[%clk 0:02:32.9]} 13. O-O-O {[%clk 0:02:29.9]} 13... Nf5 {[%clk 0:02:29.7]}
14. Bd3 {[%clk 0:02:27.4]} 14... Be7 {[%clk 0:02:24]} 15. h4 {[%clk 0:02:20.1]}
15... Qxb3 {[%clk 0:02:07.9]} 16. axb3 {[%clk 0:02:19.7]} 16... Rxh4 {[%clk
0:02:06.8]} 17. f4 {[%clk 0:02:02.6]} 17... O-O-O {[%clk 0:01:49.1]} 18. Rxh4
{[%clk 0:02:01.7]} 18... Nxh4 {[%clk 0:01:48.5]} 19. Rh1 {[%clk 0:02:02.2]}
19... Nf3 {[%clk 0:01:43.4]} 20. Rh7 {[%clk 0:01:54.7]} 20... Rg8 {[%clk
0:01:42.8]} 21. Nb1 {[%clk 0:01:43.2]} 21... Nxd2 {[%clk 0:01:40.2]} 22. Nxd2
{[%clk 0:01:43]} 22... Nf8 {[%clk 0:01:30.9]} 23. Rh1 {[%clk 0:01:38.7]} 23...
f6 {[%clk 0:01:31.2]} 24. Nf3 {[%clk 0:01:36.6]} 24... Kd7 {[%clk 0:01:30.8]}
25. Kc2 {[%clk 0:01:36]} 25... a6 {[%clk 0:01:25.7]} 26. c5 {[%clk 0:01:33.7]}
26... Ke8 {[%clk 0:01:23.6]} 27. Kc3 {[%clk 0:01:27.5]} 27... Kf7 {[%clk
0:01:23.3]} 28. Kb4 {[%clk 0:01:27.2]} 28... Nd7 {[%clk 0:01:19]} 29. Rh7 {[%clk
0:01:21.6]} 29... fxg5 {[%clk 0:01:06.5]} 30. fxg5 {[%clk 0:01:21.5]} 30... b6
{[%clk 0:01:06.5]} 31. Kc3 {[%clk 0:00:57.7]} 31... bxc5 {[%clk 0:01:05.6]} 32.
Bxa6 {[%clk 0:00:55.9]} 32... cxd4+ {[%clk 0:00:57.9]} 33. exd4 {[%clk
0:00:55.7]} 33... Rb8 {[%clk 0:00:48.7]} 34. Rh4 {[%clk 0:00:51]} 34... Bb4+
{[%clk 0:00:48.2]} 35. Kc2 {[%clk 0:00:49.6]} 35... Bd6 {[%clk 0:00:49.1]} 36.
Rh1 {[%clk 0:00:41.6]} 36... c5 {[%clk 0:00:47.9]} 37. Rf1 {[%clk 0:00:40.4]}
37... Ke7 {[%clk 0:00:38]} 38. Bd3 {[%clk 0:00:39.2]} 38... cxd4 {[%clk
0:00:36.7]} 39. Nxd4 {[%clk 0:00:37.1]} 39... Ne5 {[%clk 0:00:36.5]} 40. Be2
{[%clk 0:00:26.8]} 40... Bc5 {[%clk 0:00:34.1]} 41. Nf3 {[%clk 0:00:26]} 41...
Nxf3 {[%clk 0:00:32.9]} 42. Rxf3 {[%clk 0:00:25.5]} 42... e5 {[%clk 0:00:31.5]}
43. b4 {[%clk 0:00:23.3]} 43... Rxb4 {[%clk 0:00:30.3]} 44. Rc3 {[%clk
0:00:23.2]} 44... Kd6 {[%clk 0:00:29.6]} 45. Rf3 {[%clk 0:00:22.8]} 45... Rb7
{[%clk 0:00:21.4]} 46. Rf8 {[%clk 0:00:21.4]} 46... e4 {[%clk 0:00:21.3]} 47.
Re8 {[%clk 0:00:20.5]} 47... Bd4 {[%clk 0:00:19.7]} 48. b3 {[%clk 0:00:20.1]}
48... Be5 {[%clk 0:00:15.3]} 49. Bg4 {[%clk 0:00:19.2]} 49... Rc7+ {[%clk
0:00:15.4]} 50. Kd2 {[%clk 0:00:17.3]} 50... Bf4+ {[%clk 0:00:15.7]} 51. Kd1
{[%clk 0:00:15.7]} 51... Bxg5 {[%clk 0:00:14.8]} 52. Re6+ {[%clk 0:00:14.6]}
52... Kc5 {[%clk 0:00:15.2]} 53. Rxg6 {[%clk 0:00:14.7]} 53... Bf6 {[%clk
0:00:15.6]} 54. Be6 {[%clk 0:00:14]} 54... Kd4 {[%clk 0:00:12.3]} 55. Rg3 {[%clk
0:00:13.7]} 55... Ke5 {[%clk 0:00:12.2]} 56. Bg8 {[%clk 0:00:13]} 56... d4
{[%clk 0:00:12.6]} 57. Bh7 {[%clk 0:00:12.8]} 57... Kf4 {[%clk 0:00:08.5]} 58.
Rg1 {[%clk 0:00:08.3]} 58... Re7 {[%clk 0:00:07.8]} 59. Rf1+ {[%clk 0:00:08.6]}
59... Ke5 {[%clk 0:00:08.1]} 60. b4 {[%clk 0:00:07]} 60... d3 {[%clk 0:00:07.5]}
61. Kd2 {[%clk 0:00:06.7]} 61... Kd4 {[%clk 0:00:07.5]} 62. Rg1 {[%clk
0:00:06.3]} 62... e3+ {[%clk 0:00:07.7]} 63. Kd1 {[%clk 0:00:06.7]} 63... Kc3
{[%clk 0:00:06.8]} 64. b5 {[%clk 0:00:04.5]} 64... Ra7 {[%clk 0:00:06.8]} 65.
Bxd3 {[%clk 0:00:03.5]} 65... Kxd3 {[%clk 0:00:07.7]} 66. Kc1 {[%clk 0:00:03]}
66... Ra1# {[%clk 0:00:07.5]} 0-1

[Event "Late-Titled-Tuesday-Blitz-March-12-2024"]
[Site "Chess.com"]
[Date "2024.03.12"]
[Round "3"]
[White "imdvb6307"]
[Black "IMRosen"]
[Result "0-1"]
[WhiteElo "2499"]
[BlackElo "2694"]
[TimeControl "180+1"]
[EndTime "14:28:42 PDT"]
[Termination "IMRosen won by resignation"]

1. d4 {[%clk 0:03:00.9]} 1... d5 {[%clk 0:03:00.2]} 2. Nf3 {[%clk 0:03:00.6]}
2... Nf6 {[%clk 0:03:00.6]} 3. e3 {[%clk 0:03:00.9]} 3... c5 {[%clk 0:03:00.8]}
4. c3 {[%clk 0:02:59.5]} 4... cxd4 {[%clk 0:03:00.2]} 5. exd4 {[%clk 0:02:59.1]}
5... Nc6 {[%clk 0:03:01.1]} 6. Bf4 {[%clk 0:02:54.1]} 6... Bg4 {[%clk
0:02:59.9]} 7. Nbd2 {[%clk 0:02:52.2]} 7... e6 {[%clk 0:03:00]} 8. Bd3 {[%clk
0:02:50.4]} 8... Bd6 {[%clk 0:02:59.3]} 9. Bg3 {[%clk 0:02:38.6]} 9... Qc7
{[%clk 0:02:53.7]} 10. Qb3 {[%clk 0:02:31]} 10... O-O {[%clk 0:02:50.9]} 11. O-O
{[%clk 0:02:25]} 11... Rab8 {[%clk 0:02:44.6]} 12. a4 {[%clk 0:02:13.2]} 12...
Bxg3 {[%clk 0:02:40.8]} 13. hxg3 {[%clk 0:02:12.1]} 13... a6 {[%clk 0:02:41.5]}
14. Qd1 {[%clk 0:01:13.1]} 14... b5 {[%clk 0:02:29.7]} 15. Ra2 {[%clk
0:01:12.3]} 15... Qd6 {[%clk 0:02:15.9]} 16. Qe2 {[%clk 0:01:10.3]} 16... bxa4
{[%clk 0:01:44.5]} 17. Bxa6 {[%clk 0:01:09.3]} 17... Rb6 {[%clk 0:01:45]} 18.
Bb5 {[%clk 0:00:19.3]} 18... Rfb8 {[%clk 0:01:40.7]} 19. Bxa4 {[%clk 0:00:19.2]}
19... Rxb2 {[%clk 0:01:39.9]} 20. Rfa1 {[%clk 0:00:18.6]} 20... h6 {[%clk
0:00:55.9]} 21. Rxb2 {[%clk 0:00:16.6]} 21... Rxb2 {[%clk 0:00:55.8]} 22. Nc4
{[%clk 0:00:16.9]} 22... Rxe2 {[%clk 0:00:45.5]} 23. Nxd6 {[%clk 0:00:16.9]}
23... Ne7 {[%clk 0:00:33.5]} 24. c4 {[%clk 0:00:16.5]} 24... dxc4 {[%clk
0:00:31.5]} 25. Nxc4 {[%clk 0:00:16.7]} 25... Bxf3 {[%clk 0:00:16.7]} 26. gxf3
{[%clk 0:00:16.3]} 26... Ned5 {[%clk 0:00:17.4]} 27. Ne5 {[%clk 0:00:14.8]}
27... Rd2 {[%clk 0:00:15.2]} 28. Bc6 {[%clk 0:00:11.9]} 28... g5 {[%clk
0:00:07.9]} 29. Bxd5 {[%clk 0:00:11.6]} 29... Nxd5 {[%clk 0:00:08]} 30. Ra7
{[%clk 0:00:11.6]} 30... f6 {[%clk 0:00:07.7]} 31. Nc6 {[%clk 0:00:10.7]} 31...
Rc2 {[%clk 0:00:04.8]} 32. Ne7+ {[%clk 0:00:10.2]} 32... Nxe7 {[%clk 0:00:03.9]}
33. Rxe7 {[%clk 0:00:10.3]} 33... Rc6 {[%clk 0:00:04.1]} 34. Rd7 {[%clk
0:00:09.6]} 34... Rb6 {[%clk 0:00:03.2]} 35. Kg2 {[%clk 0:00:09.3]} 35... h5
{[%clk 0:00:02.5]} 36. d5 {[%clk 0:00:06.8]} 36... exd5 {[%clk 0:00:01.7]} 37.
Rxd5 {[%clk 0:00:06.9]} 37... Kf7 {[%clk 0:00:02.4]} 38. g4 {[%clk 0:00:06.9]}
38... h4 {[%clk 0:00:02.6]} 39. f4 {[%clk 0:00:07.4]} 39... Rb4 {[%clk
0:00:02.2]} 40. f3 {[%clk 0:00:06.7]} 40... Rxf4 {[%clk 0:00:01.7]} 41. Rd7+
{[%clk 0:00:06.9]} 41... Kg6 {[%clk 0:00:02.3]} 42. Re7 {[%clk 0:00:06.5]} 42...
Ra4 {[%clk 0:00:02.7]} 43. Re2 {[%clk 0:00:06]} 43... Ra3 {[%clk 0:00:03]} 44.
Rf2 {[%clk 0:00:03.9]} 44... Kf7 {[%clk 0:00:03.5]} 45. Kh2 {[%clk 0:00:04.2]}
45... Ra4 {[%clk 0:00:03.7]} 46. Kh3 {[%clk 0:00:03.6]} 46... Rb4 {[%clk
0:00:04.3]} 47. Re2 {[%clk 0:00:02.7]} 47... Rc4 {[%clk 0:00:04.7]} 48. Kg2
{[%clk 0:00:02.7]} 48... Rc3 {[%clk 0:00:05.2]} 49. Re1 {[%clk 0:00:02.7]} 49...
Rd3 {[%clk 0:00:05.8]} 50. Re2 {[%clk 0:00:02.7]} 50... Rd1 {[%clk 0:00:06.5]}
51. Kf2 {[%clk 0:00:02.7]} 51... Rd4 {[%clk 0:00:06.9]} 52. Kg2 {[%clk
0:00:02.7]} 52... Rd6 {[%clk 0:00:07.7]} 53. Kf2 {[%clk 0:00:02.7]} 53... Re6
{[%clk 0:00:08.5]} 54. Ra2 {[%clk 0:00:02.7]} 54... Rb6 {[%clk 0:00:08.7]} 55.
Ra7+ {[%clk 0:00:02.7]} 55... Ke6 {[%clk 0:00:09.4]} 56. Ra5 {[%clk 0:00:02.9]}
56... Rb2+ {[%clk 0:00:09.9]} 57. Kg1 {[%clk 0:00:03.2]} 57... Rc2 {[%clk
0:00:09.7]} 58. Rb5 {[%clk 0:00:03.1]} 58... Rd2 {[%clk 0:00:10]} 59. Rc5 {[%clk
0:00:03.4]} 59... Kd6 {[%clk 0:00:09.4]} 60. Ra5 {[%clk 0:00:03.4]} 60... Rd5
{[%clk 0:00:08.6]} 61. Ra4 {[%clk 0:00:03.3]} 61... Rc5 {[%clk 0:00:06.7]} 62.
f4 {[%clk 0:00:03.3]} 62... Rc3 {[%clk 0:00:04.6]} 63. Kh2 {[%clk 0:00:03.1]}
63... Rg3 {[%clk 0:00:03.6]} 64. fxg5 {[%clk 0:00:03.4]} 64... fxg5 {[%clk
0:00:04.5]} 65. Rb4 {[%clk 0:00:03.3]} 65... Ke6 {[%clk 0:00:05]} 66. Re4+
{[%clk 0:00:03.1]} 66... Kf6 {[%clk 0:00:05.4]} 67. Ra4 {[%clk 0:00:03.6]} 67...
Rf3 {[%clk 0:00:05.8]} 68. Ra6+ {[%clk 0:00:03.1]} 68... Ke5 {[%clk 0:00:05.9]}
69. Ra4 {[%clk 0:00:02]} 69... Re3 {[%clk 0:00:03.3]} 70. Rb4 {[%clk 0:00:02.1]}
70... Re4 {[%clk 0:00:03.7]} 71. Rb5+ {[%clk 0:00:02.1]} 71... Kf4 {[%clk
0:00:04.5]} 72. Kh3 {[%clk 0:00:02]} 72... Re3+ {[%clk 0:00:04.7]} 73. Kh2
{[%clk 0:00:02.5]} 73... Kxg4 {[%clk 0:00:05.5]} 0-1

[Event "Late-Titled-Tuesday-Blitz-March-12-2024"]
[Site "Chess.com"]
[Date "2024.03.12"]
[Round "3"]
[White "YoreDea"]
[Black "Nick12772"]
[Result "1-0"]
[WhiteElo "2604"]
[BlackElo "2362"]
[TimeControl "180+1"]
[EndTime "14:28:43 PDT"]
[Termination "YoreDea won by checkmate"]

1. e4 {[%clk 0:02:57.2]} 1... e6 {[%clk 0:02:59.8]} 2. d3 {[%clk 0:02:56.3]}
2... d5 {[%clk 0:03:00.7]} 3. Nd2 {[%clk 0:02:56.4]} 3... Nc6 {[%clk 0:03:00]}
4. Ngf3 {[%clk 0:02:55.2]} 4... Nf6 {[%clk 0:02:59.8]} 5. g3 {[%clk 0:02:54]}
5... dxe4 {[%clk 0:03:00]} 6. dxe4 {[%clk 0:02:54.3]} 6... e5 {[%clk 0:03:00.6]}
7. Bg2 {[%clk 0:02:54.4]} 7... Bc5 {[%clk 0:03:01.2]} 8. O-O {[%clk 0:02:54.5]}
8... O-O {[%clk 0:03:01.9]} 9. c3 {[%clk 0:02:55]} 9... a5 {[%clk 0:03:02.4]}
10. Qe2 {[%clk 0:02:53.1]} 10... Qe7 {[%clk 0:03:02.5]} 11. Nb3 {[%clk
0:02:51.6]} 11... Ba7 {[%clk 0:02:56.6]} 12. Bg5 {[%clk 0:02:39.1]} 12... h6
{[%clk 0:02:54.7]} 13. Bxf6 {[%clk 0:02:39]} 13... Qxf6 {[%clk 0:02:55.6]} 14.
h3 {[%clk 0:02:30.7]} 14... Be6 {[%clk 0:02:43.8]} 15. Kh2 {[%clk 0:02:30]}
15... Rad8 {[%clk 0:02:40.2]} 16. Rfd1 {[%clk 0:02:28.8]} 16... Rxd1 {[%clk
0:02:36]} 17. Rxd1 {[%clk 0:02:28.2]} 17... Rd8 {[%clk 0:02:36.9]} 18. Rxd8+
{[%clk 0:02:27.5]} 18... Qxd8 {[%clk 0:02:37.8]} 19. Nh4 {[%clk 0:02:19]} 19...
Qf6 {[%clk 0:02:08.2]} 20. Nf5 {[%clk 0:01:54.5]} 20... a4 {[%clk 0:01:46.7]}
21. Nd2 {[%clk 0:01:50.1]} 21... Bxf5 {[%clk 0:01:44.5]} 22. exf5 {[%clk
0:01:50.2]} 22... Qxf5 {[%clk 0:01:45.4]} 23. Bxc6 {[%clk 0:01:47.4]} 23... bxc6
{[%clk 0:01:46.3]} 24. Ne4 {[%clk 0:01:36.1]} 24... Qd7 {[%clk 0:01:38.8]} 25.
Qc4 {[%clk 0:01:26.3]} 25... a3 {[%clk 0:01:26.1]} 26. bxa3 {[%clk 0:01:23.2]}
26... Qd5 {[%clk 0:01:26.5]} 27. Qe2 {[%clk 0:00:55.9]} 27... Qa5 {[%clk
0:01:16]} 28. Qg4 {[%clk 0:00:45.7]} 28... Kh7 {[%clk 0:00:42.1]} 29. Qf5+
{[%clk 0:00:41.4]} 29... Kg8 {[%clk 0:00:40.9]} 30. Qc8+ {[%clk 0:00:25.7]}
30... Kh7 {[%clk 0:00:40.7]} 31. Qd7 {[%clk 0:00:17.1]} 31... Kg8 {[%clk
0:00:32]} 32. Qxc6 {[%clk 0:00:15.4]} 32... Qxa3 {[%clk 0:00:25.7]} 33. Qe8+
{[%clk 0:00:15]} 33... Kh7 {[%clk 0:00:24.8]} 34. Qxe5 {[%clk 0:00:14.8]} 34...
Qxa2 {[%clk 0:00:20.3]} 35. Qf5+ {[%clk 0:00:12.6]} 35... Kg8 {[%clk 0:00:18.6]}
36. h4 {[%clk 0:00:12.1]} 36... Bb6 {[%clk 0:00:17.1]} 37. h5 {[%clk 0:00:12.2]}
37... Qe6 {[%clk 0:00:15.3]} 38. Qxe6 {[%clk 0:00:10.5]} 38... fxe6 {[%clk
0:00:16.2]} 39. g4 {[%clk 0:00:11.1]} 39... Kf7 {[%clk 0:00:15.2]} 40. f4 {[%clk
0:00:10.9]} 40... Ke7 {[%clk 0:00:15.5]} 41. g5 {[%clk 0:00:11]} 41... hxg5
{[%clk 0:00:13.8]} 42. fxg5 {[%clk 0:00:11.3]} 42... Kf7 {[%clk 0:00:14.1]} 43.
g6+ {[%clk 0:00:10.7]} 43... Kg8 {[%clk 0:00:13.4]} 44. Kg3 {[%clk 0:00:11.6]}
44... Be3 {[%clk 0:00:11.6]} 45. Kf3 {[%clk 0:00:11.2]} 45... Bh6 {[%clk
0:00:12.1]} 46. Ke2 {[%clk 0:00:08.6]} 46... Kf8 {[%clk 0:00:12.7]} 47. Kd3
{[%clk 0:00:08.2]} 47... Ke7 {[%clk 0:00:13.3]} 48. Kc4 {[%clk 0:00:08.6]} 48...
Kd7 {[%clk 0:00:11.9]} 49. Kd4 {[%clk 0:00:08.3]} 49... Bf4 {[%clk 0:00:09.5]}
50. Nc5+ {[%clk 0:00:07.5]} 50... Kd6 {[%clk 0:00:08.7]} 51. Ne4+ {[%clk
0:00:07.2]} 51... Kd7 {[%clk 0:00:09.1]} 52. Kc5 {[%clk 0:00:07.7]} 52... Be3+
{[%clk 0:00:08.4]} 53. Kb5 {[%clk 0:00:07.5]} 53... Bf4 {[%clk 0:00:07.8]} 54.
c4 {[%clk 0:00:07.5]} 54... Be3 {[%clk 0:00:07.9]} 55. c5 {[%clk 0:00:07.8]}
55... Bf4 {[%clk 0:00:08.4]} 56. c6+ {[%clk 0:00:08.1]} 56... Ke7 {[%clk
0:00:08.6]} 57. Ka6 {[%clk 0:00:08.4]} 57... Bh6 {[%clk 0:00:07.9]} 58. Kb7
{[%clk 0:00:08.7]} 58... Bf4 {[%clk 0:00:08]} 59. Kc8 {[%clk 0:00:08.7]} 59...
Bh6 {[%clk 0:00:05.1]} 60. Nc5 {[%clk 0:00:08.5]} 60... Bf4 {[%clk 0:00:04.9]}
61. Na6 {[%clk 0:00:07.1]} 61... Kd6 {[%clk 0:00:04.4]} 62. Nxc7 {[%clk
0:00:07.5]} 62... Kxc6 {[%clk 0:00:04.8]} 63. Nxe6 {[%clk 0:00:07.8]} 63... Bh6
{[%clk 0:00:04.7]} 64. Kd8 {[%clk 0:00:08.1]} 64... Kd6 {[%clk 0:00:05.4]} 65.
Nf8 {[%clk 0:00:07.7]} 65... Ke5 {[%clk 0:00:05.2]} 66. Ke8 {[%clk 0:00:08.3]}
66... Kf6 {[%clk 0:00:05.8]} 67. Nh7+ {[%clk 0:00:08.2]} 67... Kf5 {[%clk
0:00:05.6]} 68. Kf7 {[%clk 0:00:09.1]} 68... Kg4 {[%clk 0:00:06.1]} 69. Nf8
{[%clk 0:00:06.8]} 69... Kxh5 {[%clk 0:00:06.5]} 70. Ne6 {[%clk 0:00:06.9]}
70... Kg4 {[%clk 0:00:06.3]} 71. Nxg7 {[%clk 0:00:06.7]} 71... Kg5 {[%clk
0:00:04.2]} 72. Ne8 {[%clk 0:00:03.6]} 72... Kf5 {[%clk 0:00:04]} 73. Nf6 {[%clk
0:00:03.8]} 73... Kg5 {[%clk 0:00:03.5]} 74. Ng8 {[%clk 0:00:04.3]} 74... Kh5
{[%clk 0:00:03.1]} 75. Nxh6 {[%clk 0:00:04.4]} 75... Kxh6 {[%clk 0:00:04]} 76.
g7 {[%clk 0:00:05.3]} 76... Kh7 {[%clk 0:00:04.7]} 77. g8=Q+ {[%clk 0:00:05.6]}
77... Kh6 {[%clk 0:00:05.6]} 78. Qg6# {[%clk 0:00:06.3]} 1-0